bitfinex-derivatives/quotes_BTCF0:USTF0_20250724
["timestamp","ask_amount","ask_price","bid_price","bid_amount"]
[1753390284886,2.22530008,118870.0,118860.0,0.27374671]
[1753390286793,1.95765437,118870.0,118860.0,0.54139242]
[1753390287101,2.22530008,118870.0,118860.0,0.54139242]
[1753390287795,2.22530008,118870.0,118860.0,0.006101]
[1753390287990,2.22530008,118870.0,118860.0,0.54139242]
[1753390294406,1.65030008,118870.0,118860.0,0.54139242]
[1753390294605,2.22530008,118870.0,118860.0,0.54139242]
[1753390297404,1.65030008,118870.0,118860.0,0.54139242]
[1753390297610,2.22526008,118870.0,118860.0,0.54139242]
[1753390299515,1.65030008,118870.0,118860.0,0.54139242]
[1753390299720,2.22526008,118870.0,118860.0,0.54139242]
[1753390300521,2.22526008,118870.0,118860.0,0.27374671]
[1753390300716,2.22559023,118870.0,118860.0,0.27374671]
[1753390303216,2.22559023,118870.0,118860.0,0.54139242]
[1753390304519,2.22559023,118870.0,118860.0,0.27374671]
[1753390305226,2.22559023,118870.0,118860.0,0.54139242]
[1753390305522,2.22555023,118870.0,118860.0,0.54139242]
[1753390314125,1.95790452,118870.0,118860.0,0.54139242]
[1753390314324,2.22555023,118870.0,118860.0,0.54139242]
[1753390314824,1.65063023,118870.0,118860.0,0.27374671]
[1753390315126,2.22551114,118870.0,118860.0,0.27374671]
[1753390315727,2.22551114,118870.0,118860.0,0.54139242]
[1753390317928,1.95786543,118870.0,118860.0,0.54139242]
[1753390318229,2.22551114,118870.0,118860.0,0.54139242]
[1753390325523,1.95786543,118870.0,118860.0,0.54139242]
[1753390326837,1.38298543,118870.0,118860.0,0.71127452]
[1753390327231,1.38298543,118870.0,118860.0,0.1759831]
[1753390327437,1.38298543,118870.0,118860.0,0.71127452]
[1753390330340,1.38298543,118870.0,118860.0,0.54308242]
[1753390330828,1.38298543,118870.0,118860.0,0.71127452]
[1753390332336,1.38298543,118870.0,118860.0,0.54308242]
[1753390334236,1.36450115,118870.0,118860.0,0.54308242]
[1753390334536,1.3830193,118870.0,118860.0,0.54308242]
[1753390335338,1.3830193,118870.0,118860.0,0.71127452]
[1753390336440,1.3830193,118870.0,118860.0,0.71233452]
[1753390337240,1.3830193,118870.0,118860.0,0.71223352]
[1753390338644,1.3830193,118870.0,118860.0,0.71117352]
[1753390339543,1.3830193,118870.0,118860.0,0.71127452]
[1753390348646,1.3832243,118870.0,118860.0,0.71127452]
[1753390358955,1.2150463,118870.0,118860.0,0.71127452]
[1753390359155,1.3832242,118870.0,118860.0,0.97998023]
[1753390359346,1.2150463,118870.0,118860.0,0.97998023]
[1753390359554,1.3832242,118870.0,118860.0,0.1770431]
[1753390359748,1.3832242,118870.0,118860.0,0.71127452]
[1753390370375,1.38324927,118870.0,118860.0,0.71127452]
[1753390373681,1.38324927,118870.0,118860.0,0.1759831]
[1753390373872,1.38324927,118870.0,118860.0,0.71127452]
[1753390375376,1.38324927,118870.0,118860.0,0.97892023]
[1753390375879,1.38324927,118870.0,118860.0,0.71127452]
[1753390376079,1.38324927,118870.0,118860.0,0.97892023]
[1753390376276,1.21507137,118870.0,118860.0,0.97892023]
[1753390376679,1.38324927,118870.0,118860.0,0.97892023]
[1753390376982,1.21507137,118870.0,118860.0,0.97892023]
[1753390377582,1.38324927,118870.0,118860.0,0.97892023]
[1753390380082,1.21507137,118870.0,118860.0,0.97892023]
[1753390380380,1.38324927,118870.0,118860.0,0.97892023]
[1753390381082,1.38324927,118870.0,118860.0,0.71127452]
[1753390382173,1.38324927,118870.0,118860.0,0.70958452]
[1753390382580,1.38324927,118870.0,118860.0,1.28402452]
[1753390382779,1.38324927,118870.0,118860.0,0.70958452]
[1753390382980,1.38324927,118870.0,118860.0,1.28402452]
[1753390384087,1.21507137,118870.0,118860.0,1.55167023]
[1753390385884,1.21507137,118870.0,118860.0,1.55332023]
[1753390386082,1.38324967,118870.0,118860.0,1.55332023]
[1753390386488,1.21507137,118870.0,118860.0,1.55332023]
[1753390386693,1.38324967,118870.0,118860.0,1.55332023]
[1753390388089,1.38324967,118870.0,118860.0,1.28567452]
[1753390391186,1.38324967,118870.0,118860.0,1.55332023]
[1753390396498,1.38324967,118870.0,118860.0,0.97892023]
[1753390396796,1.38324967,118870.0,118860.0,1.55332023]
[1753390398996,1.38324967,118870.0,118860.0,1.01802881]
[1753390399298,1.38324967,118870.0,118860.0,1.28567452]
[1753390399800,0.66164967,118870.0,118860.0,1.28567452]
[1753390400097,1.02244967,118870.0,118860.0,1.28567452]
[1753390403801,0.66164967,118870.0,118860.0,1.28567452]
[1753390404006,1.02244967,118870.0,118860.0,1.28567452]
[1753390409307,1.02244967,118870.0,118860.0,1.55332023]
[1753390415712,1.02244967,118870.0,118860.0,1.28567452]
[1753390415911,1.02244967,118870.0,118860.0,0.71127452]
[1753390416102,1.02244967,118870.0,118860.0,1.28567452]
[1753390416805,1.02244967,118870.0,118860.0,1.28557352]
[1753390417413,0.64290145,118870.0,118860.0,1.28557352]
[1753390417713,1.00370145,118870.0,118860.0,1.28557352]
[1753390419004,1.00370145,118870.0,118860.0,1.28567452]
[1753390421024,1.02237552,118870.0,118860.0,1.28567452]
[1753390422024,0.85419722,118870.0,118860.0,1.28567452]
[1753390422223,1.02237522,118870.0,118860.0,1.28567452]
[1753390422819,0.85419722,118870.0,118860.0,1.55332023]
[1753390423519,1.02237512,118870.0,118860.0,1.28567452]
[1753390423819,0.85419722,118870.0,118860.0,1.28567452]
[1753390425722,0.85419722,118870.0,118860.0,1.55332023]
[1753390428228,0.49339722,118870.0,118860.0,1.55332023]
[1753390428431,0.85419722,118870.0,118860.0,1.55332023]
[1753390429538,1.02237552,118870.0,118860.0,1.55332023]
[1753390432324,1.02237552,118870.0,118860.0,1.28567452]
[1753390433833,1.02237552,118870.0,118860.0,1.55332023]
[1753390434734,1.02237552,118870.0,118860.0,1.28567452]
[1753390435337,1.02237552,118870.0,118860.0,1.55332023]
[1753390435832,0.85419722,118870.0,118860.0,1.55332023]
[1753390437540,1.02237552,118870.0,118860.0,1.55332023]
[1753390437839,1.02237552,118870.0,118860.0,1.55328023]
[1753390441140,0.85419722,118870.0,118860.0,1.55328023]
[1753390442241,0.85419722,118870.0,118860.0,1.28563452]
[1753390442442,1.02237522,118870.0,118860.0,1.28563452]
[1753390442839,0.85419722,118870.0,118860.0,1.28563452]
[1753390443638,0.85419722,118870.0,118860.0,1.55328023]
[1753390443939,0.42833407,118870.0,118860.0,1.55434023]
[1753390444241,0.55883,118880.0,118870.0,0.2472377]
[1753390444440,0.55883,118880.0,118870.0,1.0673269]
[1753390444636,0.62847,118890.0,118880.0,0.2472235]
[1753390444842,0.26767,118890.0,118880.0,1.62452063]
[1753390445140,0.39394764,118890.0,118880.0,1.62452063]
[1753390445332,0.39394764,118890.0,118880.0,1.05016063]
[1753390445531,0.39394764,118890.0,118880.0,1.98532063]
[1753390445732,0.26767,118890.0,118880.0,1.98532063]
[1753390446343,0.31328,118890.0,118880.0,1.98532063]
[1753390447735,0.04661,118890.0,118880.0,1.98732063]
[1753390448242,0.04561,118890.0,118880.0,1.98532063]
[1753390448543,0.6703953,118900.0,118880.0,1.98532063]
[1753390448544,0.43949,118900.0,118890.0,0.1982894]
[1753390448744,0.4851,118900.0,118890.0,0.78250082]
[1753390448942,0.61052991,118900.0,118890.0,0.78250082]
[1753390449943,0.96322511,118900.0,118890.0,0.78250082]
[1753390450440,0.79508991,118900.0,118890.0,0.78250082]
[1753390451442,0.79508991,118900.0,118890.0,0.79933557]
[1753390451646,0.79608991,118900.0,118890.0,0.80133557]
[1753390452041,0.79608991,118900.0,118890.0,0.87024727]
[1753390452540,0.79608991,118900.0,118890.0,0.80133557]
[1753390453840,0.79608991,118900.0,118890.0,0.8097425]
[1753390456846,0.79608991,118900.0,118890.0,1.07738821]
[1753390457250,0.79608991,118900.0,118890.0,0.8097425]
[1753390457547,0.79608991,118900.0,118890.0,0.87808218]
[1753390458249,0.79608991,118900.0,118890.0,1.14572789]
[1753390462549,0.26704,118910.0,118900.0,0.250245]
[1753390462742,0.26704,118910.0,118900.0,1.98902213]
[1753390462743,0.08149,118910.0,118900.0,1.98902213]
[1753390462947,0.6561041,118930.0,118920.0,0.2502167]
[1753390463149,0.67461756,118930.0,118920.0,1.36050812]
[1753390463345,0.80007953,118930.0,118920.0,1.36050812]
[1753390463657,0.85842953,118930.0,118920.0,1.36050812]
[1753390464347,0.86042953,118930.0,118920.0,1.36150812]
[1753390464548,0.90572953,118930.0,118920.0,1.36150812]
[1753390464947,0.62841953,118930.0,118920.0,1.36150812]
[1753390465153,0.98921953,118930.0,118920.0,1.36150812]
[1753390467254,0.98921953,118930.0,118920.0,1.18260029]
[1753390470051,0.98921953,118930.0,118920.0,0.2512167]
[1753390470247,0.98921953,118930.0,118920.0,0.60760069]
[1753390470452,0.98921953,118930.0,118920.0,0.35738359]
[1753390470651,0.98921953,118930.0,118920.0,0.93374359]
[1753390471148,0.98921953,118930.0,118920.0,0.93370359]
[1753390471550,0.98921953,118930.0,118920.0,0.57732]
[1753390471951,1.34560312,118930.0,118920.0,0.49109]
[1753390472156,1.70640312,118930.0,118920.0,0.49109]
[1753390472550,0.480447,118920.0,118910.0,0.373702]
[1753390472752,0.85976046,118920.0,118910.0,0.950062]
[1753390472952,0.98529933,118920.0,118910.0,1.1181831]
[1753390474061,0.98629933,118920.0,118910.0,1.10086469]
[1753390474558,0.98729933,118920.0,118910.0,1.10086469]
[1753390479162,0.98729933,118920.0,118910.0,0.7444811]
[1753390479563,0.98729933,118920.0,118910.0,1.10086469]
[1753390480652,0.98729933,118920.0,118910.0,0.7448011]
[1753390480857,0.98729933,118920.0,118910.0,0.57668]
[1753390481464,0.4958909,118910.0,118900.0,0.52450849]
[1753390481664,0.51440436,118910.0,118900.0,0.7448049]
[1753390481866,0.64029493,118910.0,118900.0,1.10118849]
[1753390482564,0.64029493,118910.0,118900.0,1.10218849]
[1753390482565,0.64129493,118910.0,118900.0,1.10218849]
[1753390482766,0.64129493,118910.0,118900.0,1.23219849]
[1753390483461,0.64129493,118910.0,118900.0,1.14946849]
[1753390483666,0.64129493,118910.0,118900.0,1.10218849]
[1753390484068,0.64129493,118910.0,118900.0,0.35738359]
[1753390484568,0.64129493,118910.0,118900.0,0.93386359]
[1753390484869,0.64129493,118910.0,118900.0,1.10199899]
[1753390487478,0.64129493,118910.0,118900.0,0.93386359]
[1753390487978,0.64129493,118910.0,118900.0,1.10199899]
[1753390488368,0.64129493,118910.0,118900.0,1.14927899]
[1753390488571,0.64129493,118910.0,118900.0,1.23200899]
[1753390490075,0.64129493,118910.0,118900.0,1.06387359]
[1753390491275,0.64129493,118910.0,118900.0,1.27409676]
[1753390492376,0.64129493,118910.0,118900.0,1.44223216]
[1753390493078,0.64129493,118910.0,118900.0,1.27409676]
[1753390493476,0.64129493,118910.0,118900.0,1.44223216]
[1753390495780,0.64129493,118910.0,118900.0,1.27409676]
[1753390496377,0.64129493,118910.0,118900.0,1.44223216]
[1753390496679,0.64129493,118910.0,118900.0,1.27409676]
[1753390498486,1.00209493,118910.0,118900.0,0.73926]
[1753390498685,1.26951331,118910.0,118900.0,0.30018838]
[1753390498887,1.26951331,118910.0,118900.0,0.84433838]
[1753390499787,1.18800331,118910.0,118900.0,0.84433838]
[1753390499988,1.23693331,118910.0,118900.0,0.84433838]
[1753390500185,1.23693331,118910.0,118900.0,0.84425838]
[1753390500387,0.2007154,118900.0,118890.0,0.04728]
[1753390500690,1.48715162,118900.0,118890.0,0.04728]
[1753390500890,1.48715162,118900.0,118890.0,0.62312]
[1753390501087,1.48715162,118900.0,118890.0,0.04728]
[1753390501685,1.48715162,118900.0,118890.0,0.04828]
[1753390502489,1.48715162,118900.0,118890.0,0.62468]
[1753390502689,1.48815162,118900.0,118890.0,0.62668]
[1753390503292,1.27746507,118900.0,118890.0,0.5794]
[1753390503492,1.32739507,118900.0,118890.0,0.5784]
[1753390503890,1.32739507,118900.0,118890.0,0.5764]
[1753390504285,0.2007436,118880.0,118870.0,1.05603791]
[1753390504492,0.46551706,118880.0,118870.0,1.63243791]
[1753390504692,0.59156812,118880.0,118870.0,1.63243791]
[1753390504993,0.64049812,118880.0,118870.0,1.63243791]
[1753390505495,0.64049812,118880.0,118870.0,1.63443791]
[1753390505995,0.64149812,118880.0,118870.0,1.63743791]
[1753390509803,0.64149812,118880.0,118870.0,1.27663791]
[1753390510005,0.64149812,118880.0,118870.0,1.63743791]
[1753390511407,0.64149812,118880.0,118870.0,1.2807077]
[1753390511700,0.64149812,118880.0,118870.0,1.63743791]
[1753390515094,0.64149812,118880.0,118870.0,1.2807077]
[1753390515297,0.64149812,118880.0,118870.0,1.63743791]
[1753390523105,0.64149812,118880.0,118870.0,1.81577722]
[1753390525308,0.64149812,118880.0,118870.0,1.54824246]
[1753390525509,0.64149812,118880.0,118870.0,1.81577722]
[1753390526109,0.64149812,118880.0,118870.0,1.54824246]
[1753390526511,0.64149812,118880.0,118870.0,1.81577722]
[1753390531117,0.64149812,118880.0,118870.0,1.45497722]
[1753390531317,0.64149812,118880.0,118870.0,1.81577722]
[1753390531912,0.64149812,118880.0,118870.0,1.60555952]
[1753390532117,0.64149812,118880.0,118870.0,1.50620316]
[1753390532319,0.64149812,118880.0,118870.0,1.33802476]
[1753390534818,0.64149812,118880.0,118870.0,1.50620316]
[1753390535020,0.64149812,118880.0,118870.0,1.2386684]
[1753390535320,0.64149812,118880.0,118870.0,1.50620316]
[1753390538418,0.64149812,118880.0,118870.0,1.06023476]
[1753390538636,0.64149812,118880.0,118870.0,1.22841316]
[1753390539217,0.90903288,118880.0,118870.0,1.22841316]
[1753390539417,0.90903288,118880.0,118870.0,0.48383476]
[1753390539721,1.53736764,118880.0,118870.0,0.03526]
[1753390540027,1.53736764,118880.0,118870.0,0.87851476]
[1753390540324,1.26983288,118880.0,118870.0,1.00038476]
[1753390541012,1.26986737,118880.0,118870.0,1.00038476]
[1753390541722,1.26986737,118880.0,118870.0,0.73285]
[1753390541924,1.26986737,118880.0,118870.0,1.00038476]
[1753390544624,1.53740213,118880.0,118870.0,0.005]
[1753390544819,1.53740213,118880.0,118870.0,0.84813476]
[1753390545328,1.53740213,118880.0,118870.0,0.5806]
[1753390545627,1.53740213,118880.0,118870.0,0.005]
[1753390545926,1.53740213,118880.0,118870.0,0.58056]
[1753390546320,1.53740213,118880.0,118870.0,0.005]
[1753390546520,1.53740213,118880.0,118850.0,0.22769069]
[1753390546521,0.4185524,118860.0,118850.0,0.22769069]
[1753390546721,0.76526511,118860.0,118850.0,1.07070545]
[1753390546926,0.89147906,118860.0,118850.0,0.49522545]
[1753390547125,0.89147906,118860.0,118850.0,1.07074545]
[1753390547326,1.25227906,118860.0,118850.0,1.07074545]
[1753390547522,1.25327906,118860.0,118850.0,1.07574545]
[1753390547830,1.26163461,118860.0,118850.0,1.07874545]
[1753390548428,1.26163461,118860.0,118850.0,1.07866545]
[1753390548724,1.26163461,118860.0,118850.0,0.50322545]
[1753390549229,0.99409985,118860.0,118850.0,1.07862545]
[1753390549430,1.26163461,118860.0,118850.0,1.07862545]
[1753390552124,1.26163461,118860.0,118850.0,0.81109069]
[1753390552317,1.26163461,118860.0,118850.0,1.07862545]
[1753390552931,0.99409985,118860.0,118850.0,1.07862545]
[1753390553231,1.26163461,118860.0,118850.0,1.07862545]
[1753390554522,0.99409985,118860.0,118850.0,1.07862545]
[1753390554727,1.13113461,118860.0,118850.0,0.37050545]
[1753390555128,1.13113461,118860.0,118850.0,0.94558545]
[1753390555728,1.13113461,118860.0,118850.0,0.92878476]
[1753390555933,1.13113461,118860.0,118850.0,0.88360476]
[1753390557335,0.86359985,118860.0,118850.0,0.88360476]
[1753390557634,1.13113461,118860.0,118850.0,0.88360476]
[1753390558431,1.13113461,118860.0,118850.0,0.92874476]
[1753390559736,1.20926461,118860.0,118850.0,1.00547476]
[1753390560229,1.20926461,118860.0,118850.0,0.73794]
[1753390560430,1.47679937,118860.0,118850.0,0.79393]
[1753390561237,1.20926461,118860.0,118850.0,1.06146476]
[1753390561440,1.20926461,118860.0,118850.0,0.79393]
[1753390562032,1.47679937,118860.0,118850.0,0.79393]
[1753390563341,1.26163461,118860.0,118850.0,0.79393]
[1753390563637,1.26163461,118860.0,118850.0,1.06146476]
[1753390565432,0.99409985,118860.0,118850.0,1.06146476]
[1753390565631,1.26163461,118860.0,118850.0,1.06146476]
[1753390568842,1.24308666,118860.0,118850.0,1.06146476]
[1753390569043,1.26217869,118860.0,118850.0,1.06146476]
[1753390570540,1.26217869,118860.0,118850.0,0.79393]
[1753390570541,0.99464393,118860.0,118850.0,0.79393]
[1753390570739,1.26217869,118860.0,118850.0,1.06146476]
[1753390571640,1.26217869,118860.0,118850.0,0.79393]
[1753390571838,1.52971345,118860.0,118850.0,1.06146476]
[1753390572442,1.52971345,118860.0,118850.0,0.1629]
[1753390572745,1.52971345,118860.0,118850.0,0.008]
[1753390573045,1.52971345,118860.0,118850.0,0.58536]
[1753390574146,1.52971345,118860.0,118850.0,0.73874]
[1753390576147,1.57510801,118860.0,118850.0,0.73874]
[1753390581443,1.57510801,118860.0,118850.0,0.79198]
[1753390581646,1.57510801,118860.0,118850.0,1.05951476]
[1753390582053,1.04003849,118860.0,118850.0,1.05951476]
[1753390582349,1.30757325,118860.0,118850.0,1.05951476]
[1753390582549,1.57510801,118860.0,118850.0,1.05951476]
[1753390583749,1.30757325,118860.0,118850.0,1.05951476]
[1753390583950,1.30757325,118860.0,118850.0,1.05962337]
[1753390585049,1.30757325,118860.0,118850.0,0.79208861]
[1753390585249,1.30757325,118860.0,118850.0,1.05962337]
[1753390585450,1.88545325,118860.0,118850.0,1.05962337]
[1753390585650,2.15298801,118860.0,118850.0,1.05962337]
[1753390585848,1.57510801,118860.0,118850.0,1.05962337]
[1753390586055,2.15306801,118860.0,118850.0,1.05962337]
[1753390586954,2.15306801,118860.0,118850.0,0.79208861]
[1753390587150,2.15306801,118860.0,118850.0,1.05962337]
[1753390589152,2.15206801,118860.0,118850.0,1.05462337]
[1753390589355,2.15306801,118860.0,118850.0,1.05662337]
[1753390589654,1.57510801,118860.0,118850.0,1.05662337]
[1753390589856,2.15274801,118860.0,118850.0,1.05662337]
[1753390590755,2.15274801,118860.0,118850.0,1.05362337]
[1753390592058,2.13365598,118860.0,118850.0,1.05362337]
[1753390592258,2.15277673,118860.0,118850.0,1.05362337]
[1753390593959,1.61770721,118860.0,118850.0,1.05362337]
[1753390594258,2.15277673,118860.0,118850.0,1.05362337]
[1753390596159,2.10738217,118860.0,118850.0,1.05362337]
[1753390596452,2.15269621,118860.0,118850.0,1.05362337]
[1753390598163,2.15269621,118860.0,118850.0,0.78608861]
[1753390598465,2.15269621,118860.0,118850.0,1.05362337]
[1753390598851,2.15269621,118860.0,118850.0,0.78608861]
[1753390599450,1.57502522,118860.0,118850.0,0.78608861]
[1753390599652,2.15230522,118860.0,118850.0,0.78608861]
[1753390600259,2.10699118,118860.0,118850.0,0.78608861]
[1753390600564,1.52971118,118860.0,118850.0,0.78608861]
[1753390600767,2.15235839,118860.0,118850.0,0.78608861]
[1753390601159,2.10703118,118860.0,118850.0,0.57946861]
[1753390601863,2.10703118,118860.0,118850.0,0.61159861]
[1753390602166,2.10703118,118860.0,118850.0,0.66151861]
[1753390602358,2.10703118,118860.0,118850.0,0.73249861]
[1753390602560,2.10703118,118860.0,118850.0,0.15513861]
[1753390603067,2.16755726,118860.0,118850.0,0.15513861]
[1753390603467,2.16811726,118860.0,118850.0,0.15513861]
[1753390604064,1.63304774,118860.0,118850.0,0.15513861]
[1753390604263,2.16811726,118860.0,118850.0,0.15513861]
[1753390604460,2.16811726,118860.0,118850.0,0.42267337]
[1753390604860,2.16811726,118860.0,118850.0,0.15513861]
[1753390605365,1.52971118,118860.0,118850.0,0.15513861]
[1753390605569,2.10743118,118860.0,118850.0,0.15513861]
[1753390606563,2.10743913,118860.0,118850.0,0.15513861]
[1753390606766,2.16796521,118860.0,118850.0,0.15513861]
[1753390606966,2.16796521,118860.0,118850.0,0.00210861]
[1753390610172,1.59024521,118860.0,118850.0,0.00210861]
[1753390610373,2.16888521,118860.0,118850.0,0.00210861]
[1753390618380,1.63381569,118860.0,118850.0,0.00210861]
[1753390618582,2.16888521,118860.0,118850.0,0.00210861]
[1753390620286,1.63381569,118860.0,118850.0,0.00210861]
[1753390620481,2.16888521,118860.0,118850.0,0.00210861]
[1753390623990,1.63381569,118860.0,118850.0,0.00210861]
[1753390624190,2.16888521,118860.0,118850.0,0.00210861]
[1753390628786,2.10835913,118860.0,118850.0,0.00210861]
[1753390629092,2.16888521,118860.0,118850.0,0.00210861]
[1753390629286,1.59024521,118860.0,118850.0,0.00210861]
[1753390629597,2.10935913,118860.0,118850.0,0.00210861]
[1753390633597,1.52971913,118860.0,118850.0,0.00210861]
[1753390633800,2.10915913,118860.0,118850.0,0.00210861]
[1753390635505,1.52971913,118860.0,118850.0,0.00210861]
[1753390635803,2.10895913,118860.0,118850.0,0.00210861]
[1753390638615,2.16948521,118860.0,118850.0,0.00210861]
[1753390639011,2.10895913,118860.0,118850.0,0.00210861]
[1753390639210,2.1543262,118860.0,118850.0,0.00210861]
[1753390645313,1.57388961,118860.0,118850.0,0.00210861]
[1753390645518,2.10839913,118860.0,118850.0,0.00210861]
[1753390647117,2.16892521,118860.0,118850.0,0.00210861]
[1753390651015,0.2936612,118840.0,118830.0,5.39847814]
[1753390651222,1.34342367,118840.0,118830.0,5.39847814]
[1753390651418,1.73689665,118840.0,118830.0,5.0]
[1753390651615,2.143064,118840.0,118830.0,5.0]
[1753390652221,2.143064,118840.0,118830.0,5.002]
[1753390653323,2.144064,118840.0,118830.0,5.005]
[1753390653820,2.144064,118840.0,118830.0,5.002]
[1753390654022,2.144064,118840.0,118830.0,5.003]
[1753390655421,2.09869665,118840.0,118830.0,5.001]
[1753390655629,2.09869665,118840.0,118830.0,5.002]
[1753390658823,2.07959894,118840.0,118830.0,5.002]
[1753390659023,2.09867812,118840.0,118830.0,5.002]
[1753390659825,2.14404547,118840.0,118830.0,5.002]
[1753390664119,2.14404547,118840.0,118830.0,5.04922]
[1753390665225,1.60897595,118840.0,118830.0,5.11462]
[1753390665429,2.14404547,118840.0,118830.0,5.11462]
[1753390665630,1.60829595,118840.0,118830.0,5.11462]
[1753390665820,2.14336547,118840.0,118830.0,5.11462]
[1753390671734,2.14424547,118840.0,118830.0,5.11462]
[1753390675833,1.56564547,118840.0,118830.0,5.11462]
[1753390676136,2.14460547,118840.0,118830.0,5.11462]
[1753390680040,2.14420547,118840.0,118830.0,5.11462]
[1753390680337,1.60909595,118840.0,118830.0,5.11462]
[1753390680642,2.14416547,118840.0,118830.0,5.11462]
[1753390684131,2.14412547,118840.0,118830.0,5.11462]
[1753390684836,1.56564547,118840.0,118830.0,5.11462]
[1753390685035,2.14392547,118840.0,118830.0,5.11462]
[1753390686044,1.56564547,118840.0,118830.0,5.11462]
[1753390686246,2.14376547,118840.0,118830.0,5.11462]
[1753390687045,1.56564547,118840.0,118830.0,5.11462]
[1753390687246,2.14368547,118840.0,118830.0,5.11462]
[1753390687443,1.56564547,118840.0,118830.0,5.11462]
[1753390687847,2.14364547,118840.0,118830.0,5.11462]
[1753390689049,1.56564547,118840.0,118830.0,5.11462]
[1753390689244,2.14364547,118840.0,118830.0,5.11462]
[1753390689950,2.14352547,118840.0,118830.0,5.11462]
[1753390691044,1.56564547,118840.0,118830.0,5.11462]
[1753390691251,2.14336547,118840.0,118830.0,5.11462]
[1753390692854,1.56564547,118840.0,118830.0,5.11462]
[1753390693054,2.14324547,118840.0,118830.0,5.11462]
[1753390693249,1.56564547,118840.0,118830.0,5.11462]
[1753390693456,2.14320547,118840.0,118830.0,5.11462]
[1753390694558,2.14319873,118840.0,118830.0,5.11462]
[1753390694752,1.56563873,118840.0,118830.0,5.11462]
[1753390694953,2.14319873,118840.0,118830.0,5.11462]
[1753390695253,2.09783138,118840.0,118830.0,5.11462]
[1753390695756,1.78780614,118840.0,118830.0,5.11462]
[1753390695956,2.42569222,118840.0,118830.0,5.11462]
[1753390696156,1.58079746,118840.0,118830.0,5.11462]
[1753390696459,2.15815746,118840.0,118830.0,5.11462]
[1753390697456,2.14300439,118840.0,118830.0,5.11462]
[1753390698367,1.60793487,118840.0,118830.0,5.11462]
[1753390698661,2.14300439,118840.0,118830.0,5.11462]
[1753390699563,2.15815746,118840.0,118830.0,5.11462]
[1753390700561,2.15855746,118840.0,118830.0,5.11462]
[1753390700957,1.58079746,118840.0,118830.0,5.11462]
[1753390701158,3.65851746,118840.0,118830.0,5.11462]
[1753390706066,2.15851746,118840.0,118830.0,5.11462]
[1753390709167,1.58079746,118840.0,118830.0,5.11462]
[1753390709353,2.15803746,118840.0,118830.0,5.11462]
[1753390710065,2.09749436,118840.0,118830.0,5.11462]
[1753390712665,2.142825,118840.0,118830.0,5.11462]
[1753390715377,2.12376958,118840.0,118830.0,5.11462]
[1753390715675,2.07843894,118840.0,118830.0,5.11462]
[1753390717976,1.81090418,118840.0,118830.0,5.11462]
[1753390718279,2.07843894,118840.0,118830.0,5.11462]
[1753390719076,2.13887674,118840.0,118830.0,5.11462]
[1753390719477,2.1579263,118840.0,118830.0,5.11462]
[1753390723590,2.0974885,118840.0,118830.0,5.11462]
[1753390724486,2.36502326,118840.0,118830.0,4.27633406]
[1753390724989,2.36430326,118840.0,118830.0,4.27633406]
[1753390725389,1.84822106,118840.0,118830.0,4.27533406]
[1753390725688,2.42678106,118840.0,118830.0,4.27533406]
[1753390727089,2.42666106,118840.0,118830.0,4.27533406]
[1753390727289,2.4268687,118840.0,118830.0,4.27533406]
[1753390727883,3.9268687,118840.0,118830.0,4.27533406]
[1753390730792,1.84807614,118840.0,118830.0,4.27533406]
[1753390731393,1.78868614,118840.0,118830.0,4.27533406]
[1753390731795,1.21228614,118840.0,118830.0,4.27533406]
[1753390731988,1.78900614,118840.0,118830.0,4.27533406]
[1753390732187,1.21228614,118840.0,118830.0,4.27533406]
[1753390732491,1.84285614,118840.0,118830.0,4.27533406]
[1753390733092,1.91262614,118840.0,118830.0,4.27533406]
[1753390733590,1.95830614,118840.0,118830.0,4.27533406]
[1753390733896,2.00360876,118840.0,118830.0,4.27533406]
[1753390734798,2.27114352,118840.0,118830.0,4.27533406]
[1753390734997,2.2258409,118840.0,118830.0,4.27533406]
[1753390736497,2.2862787,118840.0,118830.0,4.27533406]
[1753390736700,2.2863987,118840.0,118830.0,4.27533406]
[1753390738692,2.30150816,118840.0,118830.0,4.27533406]
[1753390739200,1.72454816,118840.0,118830.0,4.27533406]
[1753390739498,2.30150816,118840.0,118830.0,4.27533406]
[1753390739799,2.0339734,118840.0,118830.0,4.27533406]
[1753390740295,2.2259609,118840.0,118830.0,4.27533406]
[1753390740702,1.6490009,118840.0,118830.0,4.27533406]
[1753390740901,2.2266009,118840.0,118830.0,4.27533406]
[1753390741402,2.30214816,118840.0,118830.0,4.27533406]
[1753390741604,2.2266009,118840.0,118830.0,4.27533406]
[1753390741898,1.6490009,118840.0,118830.0,4.27533406]
[1753390742203,2.2271209,118840.0,118830.0,4.27533406]
[1753390743804,1.6490009,118840.0,118830.0,4.27533406]
[1753390744007,1.4851733,118840.0,118830.0,4.27533406]
[1753390744198,2.2274009,118840.0,118830.0,4.27533406]
[1753390744599,2.30294816,118840.0,118830.0,4.27533406]
[1753390744807,1.72454816,118840.0,118830.0,4.27533406]
[1753390745006,2.30302816,118840.0,118830.0,4.27533406]
[1753390745306,2.36340884,118840.0,118830.0,4.27533406]
[1753390745507,2.28786158,118840.0,118830.0,4.27533406]
[1753390749212,1.4852573,118840.0,118830.0,4.27533406]
[1753390749509,2.28786158,118840.0,118830.0,4.27533406]
[1753390752108,2.2274809,118840.0,118830.0,4.27533406]
[1753390752411,2.28789501,118840.0,118830.0,4.27533406]
[1753390752815,2.2274809,118840.0,118830.0,4.27533406]
[1753390754612,2.28790779,118840.0,118830.0,4.27533406]
[1753390764021,2.2274809,118840.0,118830.0,4.27533406]
[1753390765216,2.30302816,118840.0,118830.0,4.27533406]
[1753390771426,2.36351419,118840.0,118830.0,4.27533406]
[1753390771629,2.28796693,118840.0,118830.0,4.27533406]
[1753390776528,2.30302816,118840.0,118830.0,4.27533406]
[1753390777328,3.10563244,118840.0,118830.0,3.276502]
[1753390777727,3.10563244,118840.0,118830.0,3.1842588]
[1753390778024,2.30302816,118840.0,118830.0,3.13879171]
[1753390778432,3.10563244,118840.0,118830.0,3.13879171]
[1753390778734,2.30302816,118840.0,118830.0,3.13879171]
[1753390779827,2.30302816,118840.0,118830.0,3.09441501]
[1753390780130,2.30302816,118840.0,118830.0,3.03093981]
[1753390780433,2.2274809,118840.0,118830.0,2.94143021]
[1753390780632,2.2274809,118840.0,118830.0,2.84185991]
[1753390780930,2.28793305,118840.0,118830.0,2.70472021]
[1753390781232,2.28793305,118840.0,118830.0,2.61833381]
[1753390781932,2.28793305,118840.0,118830.0,2.54147991]
[1753390782925,2.28793305,118840.0,118830.0,2.46626281]
[1753390783231,2.2274809,118840.0,118830.0,2.33031071]
[1753390783431,2.2274809,118840.0,118830.0,2.26090021]
[1753390783632,2.2274809,118840.0,118830.0,2.18224471]
[1753390783931,2.2274809,118840.0,118830.0,2.11878871]
[1753390784129,2.2274809,118840.0,118830.0,2.07972781]
[1753390784333,2.2274809,118840.0,118830.0,1.99524051]
[1753390784529,2.2274809,118840.0,118830.0,1.94821881]
[1753390785025,2.30302816,118840.0,118830.0,1.91002371]